bitfinex-derivatives/quotes_BNBF0:USTF0_20250424
["timestamp","ask_amount","ask_price","bid_price","bid_amount"]
[1745453826944,2.12872998,606.34,604.65,5.308]
[1745453826945,1.2511719,605.86,604.65,5.308]
[1745453827542,0.28766036,605.85,604.65,5.308]
[1745453829445,1.2511719,605.86,604.65,5.308]
[1745453829945,1.2511719,605.91,604.65,5.308]
[1745453830546,0.28765442,605.9,604.65,5.308]
[1745453832348,1.2511719,605.91,604.65,5.308]
[1745453832743,1.2511719,605.9,604.65,5.308]
[1745453833643,0.28765561,605.89,604.65,5.308]
[1745453835246,1.2511719,605.9,604.65,5.308]
[1745453835547,1.2511719,605.92,604.65,5.308]
[1745453836546,0.28763659,605.91,604.65,5.308]
[1745453838548,1.2511719,606.06,604.65,5.308]
[1745453839750,0.28759855,606.05,604.65,5.308]
[1745453841351,1.2511719,606.73,604.65,5.308]
[1745453842549,0.28751895,606.72,604.65,5.308]
[1745453844353,1.2511719,606.73,604.65,5.308]
[1745453844750,0.28751895,606.71,604.65,5.308]
[1745453847254,1.2511719,606.74,604.65,5.308]
[1745453847558,0.28750114,606.7,604.65,5.308]
[1745453849059,1.2511719,606.45,604.65,5.308]
[1745453851562,1.2511719,606.33,604.65,5.308]
[1745453853559,1.2511719,606.36,604.65,5.308]
[1745453854554,0.2875439,606.35,604.65,5.308]
[1745453856364,1.2511719,606.46,604.65,5.308]
[1745453857565,0.28753202,606.45,604.65,5.308]
[1745453859364,1.2511719,606.35,604.65,5.308]
[1745453861768,1.2511719,606.31,604.65,5.308]
[1745453863569,0.28759023,606.3,604.65,5.308]
[1745453864566,1.2511719,606.11,604.65,5.308]
[1745453866570,0.28760449,606.1,604.65,5.308]
[1745453868271,1.2511719,606.16,604.65,5.308]
[1745453869579,0.28759855,606.15,604.65,5.308]
[1745453874386,1.2511719,606.25,604.65,5.308]
[1745453875587,0.28755934,606.24,604.65,5.308]
[1745453883294,1.2511719,606.64,604.65,5.308]
[1745453883591,0.28749639,606.23,604.65,5.308]
[1745453883892,1.2511719,606.64,604.65,5.308]
[1745453884793,0.28750826,606.63,604.65,5.308]
[1745453886393,1.2511719,606.64,604.65,5.308]
[1745453887597,0.28749401,606.63,604.65,5.308]
[1745453887796,1.2511719,606.6,604.65,5.308]
[1745453890499,0.28749876,606.59,604.65,5.308]
[1745453892501,1.2511719,606.76,604.65,5.308]
[1745453893202,1.2511719,606.83,604.65,5.308]
[1745453893598,0.28748689,606.82,604.65,5.308]
[1745453895404,1.2511719,606.83,604.65,5.308]
[1745453895705,1.2511719,606.6,604.65,5.308]
[1745453896601,0.28751301,606.59,604.65,5.308]
[1745453898407,1.2511719,606.6,604.65,5.308]
[1745453898710,1.2511719,606.6,604.12,1.04865078]
[1745453898904,1.2511719,606.66,604.13,0.30359983]
[1745453899101,1.2511719,606.66,604.14,0.30359983]
[1745453899301,1.2511719,606.66,604.15,0.30359983]
[1745453899506,0.28759142,606.65,604.15,0.28759142]
[1745453899699,0.28759142,606.65,604.16,0.30359983]
[1745453900102,0.28759142,606.65,604.15,0.28759142]
[1745453900300,0.28759142,606.65,604.16,0.30359631]
[1745453901408,1.2511719,606.66,604.16,0.30359631]
[1745453901609,1.2511719,606.66,604.08,0.30359631]
[1745453901806,1.2511719,606.66,604.09,0.30362351]
[1745453902010,1.2511719,606.57,604.08,0.30362351]
[1745453902310,1.2511719,606.57,604.09,0.30362351]
[1745453902511,0.28761163,606.56,604.09,0.28761163]
[1745453902711,0.28761163,606.56,604.1,0.30362351]
[1745453903111,0.28761163,606.56,604.11,1.483]
[1745453903610,0.28761163,606.56,604.12,1.31562713]
[1745453903808,0.28761163,606.56,604.13,0.30362713]
[1745453904407,1.2511719,606.57,604.13,0.30362713]
[1745453904712,1.2511719,606.57,604.14,1.62862713]
[1745453904912,1.2511719,606.57,604.15,0.30363908]
[1745453905211,1.2511719,606.57,604.16,0.30363908]
[1745453905412,1.2511719,606.25,604.17,0.30363908]
[1745453905612,1.2511719,606.25,604.18,0.30363908]
[1745453905813,1.2511719,606.25,604.19,0.30363908]
[1745453906112,1.2511719,606.25,604.2,0.30363908]
[1745453906308,1.2511719,606.25,604.21,0.30363908]
[1745453906612,1.2511719,606.25,604.22,0.30363339]
[1745453906812,1.2511719,606.25,604.23,0.30363339]
[1745453907014,1.2511719,606.25,604.15,0.30363339]
[1745453907211,1.2511719,606.25,604.16,0.30363339]
[1745453907411,1.2511719,606.25,604.17,0.30363339]
[1745453907613,1.2511719,606.25,604.18,0.30363339]
[1745453907909,1.2511719,606.25,604.19,0.30363339]
[1745453908114,1.2511719,606.25,604.2,0.30363155]
[1745453908315,2.12872998,606.91,604.14,2.576]
[1745453908316,1.2511719,605.96,604.26,1.04865078]
[1745453908615,1.2511719,605.96,604.27,0.30363155]
[1745453909715,1.2511719,605.96,604.28,0.30363927]
[1745453910010,1.2511719,605.96,604.27,0.30363927]
[1745453910212,1.2511719,605.96,604.28,0.30363927]
[1745453910413,1.2511719,605.95,604.27,0.30363927]
[1745453910612,1.2511719,605.95,604.28,0.30363927]
[1745453910814,0.28767106,605.94,604.29,0.30363927]
[1745453911111,0.28767106,605.94,604.3,0.30363927]
[1745453911415,0.28767106,605.94,604.31,0.30364392]
[1745453911609,0.28767106,605.94,604.26,0.30364392]
[1745453911817,0.28767106,605.94,604.27,0.30364392]
[1745453912016,0.28767106,605.94,604.26,0.30364392]
[1745453912316,1.2511719,605.93,604.27,0.30364392]
[1745453912516,1.2511719,605.93,604.25,0.30364392]
[1745453912712,1.2511719,605.93,604.24,1.04865078]
[1745453912916,1.2511719,605.93,604.25,0.30364364]
[1745453913913,0.28767463,605.92,604.25,0.30364364]
[1745453915417,0.28767463,605.92,604.23,0.30364364]
[1745453915618,0.28767463,605.92,604.24,0.30364698]
[1745453915820,0.28767463,605.92,604.23,0.30364698]
[1745453916020,0.28767463,605.92,604.24,0.30364672]
[1745453916219,0.28767463,605.92,604.23,0.30364672]
[1745453917917,0.28767463,605.92,604.22,0.30364672]
[1745453918117,0.28767463,605.92,604.23,0.30364672]
[1745453918421,0.28767463,605.92,604.24,0.30364672]
[1745453918619,0.28767463,605.92,604.25,0.30364672]
[1745453918820,0.28767463,605.92,604.26,0.30364672]
[1745453919021,0.28767463,605.92,604.27,0.30364672]
[1745453919223,0.28767463,605.92,604.28,0.30364672]
[1745453919421,1.2511719,606.1,604.29,0.30364672]
[1745453919717,1.2511719,606.1,604.3,0.30364672]
[1745453919922,1.2511719,606.1,604.15,0.30364672]
[1745453920123,1.2511719,606.1,604.16,0.30364672]
[1745453920320,1.2511719,606.1,604.17,0.30364672]
[1745453920517,1.2511719,606.1,604.15,0.30364672]
[1745453920721,0.28767344,606.09,604.17,0.28767344]
[1745453920924,0.28767344,606.09,604.18,0.30365193]
[1745453922334,1.2511719,606.16,604.18,0.30365193]
[1745453922535,1.2511719,606.16,604.15,0.30365193]
[1745453922728,1.2511719,606.16,604.17,0.28766987]
[1745453922928,1.2511719,606.16,604.18,0.30365193]
[1745453923131,1.2511719,606.14,604.18,0.30365193]
[1745453923634,0.28767463,606.13,604.18,0.30365193]
[1745453923834,0.28767463,606.13,604.19,0.30369506]
[1745453924034,0.28767463,606.13,604.2,0.30369506]
[1745453924235,0.28767463,606.13,604.21,0.30369506]
[1745453924435,0.28767463,606.13,604.22,0.30369506]
[1745453924636,0.28767463,606.13,604.18,0.30369506]
[1745453924837,0.28767463,606.13,604.19,0.30369506]
[1745453925038,0.28767463,606.13,604.18,0.30369506]
[1745453925233,0.28767463,606.13,604.17,0.28766987]
[1745453925431,1.2511719,606.14,604.18,0.30370118]
[1745453925637,0.28769366,606.12,604.19,0.30370118]
[1745453925933,0.28769366,606.12,604.2,0.30370118]
[1745453926237,0.28769366,606.12,604.21,0.30370118]
[1745453926436,0.28769366,606.12,604.22,0.30370118]
[1745453926635,0.28769366,606.12,604.15,0.30370118]
[1745453926837,0.28769366,606.12,604.14,2.576]
[1745453927136,0.28769366,606.12,604.15,0.30370279]
[1745453928340,1.2511719,606.13,604.15,0.30370279]
[1745453928535,0.28770317,606.11,604.15,0.30370279]
[1745453931444,1.2511719,606.13,604.15,0.30370279]
[1745453932639,0.28768176,606.12,604.15,0.30370279]
[1745453933145,0.28768176,606.12,604.14,2.576]
[1745453933342,0.28768176,606.12,604.15,0.30368107]
[1745453934340,1.2511719,606.13,604.15,0.30368107]
[1745453934645,1.2511719,606.12,604.15,1.653]
[1745453934841,1.2511719,606.12,604.16,0.30368195]
[1745453935641,0.28768176,606.11,604.16,0.30368195]
[1745453937339,1.2511719,606.53,604.16,0.30368195]
[1745453937538,1.2511719,606.53,604.16,1.58268195]
[1745453937747,1.2511719,606.53,604.17,0.30368195]
[1745453938647,0.28763183,606.52,604.17,0.30368195]
[1745453939751,1.2511719,606.51,604.17,0.30368195]
[1745453940648,0.28763421,606.5,604.17,0.30368195]
[1745453941344,0.28763421,606.5,604.16,1.56663421]
[1745453943146,0.28763421,606.5,604.17,0.30368754]
[1745453943551,1.2511719,606.57,604.17,0.30368754]
[1745453943845,1.2511719,606.57,604.17,1.60768754]
[1745453944050,1.2511719,606.57,604.18,0.30368754]
[1745453944750,0.28762589,606.56,604.18,0.30368754]
[1745453945352,0.28762589,606.56,604.17,1.59162589]
[1745453945551,0.28762589,606.56,604.18,0.30368574]
[1745453946352,1.2511719,606.57,604.18,0.30368574]
[1745453946853,1.2511719,606.35,604.18,0.30368574]
[1745453947048,1.2511719,606.35,604.19,0.30368934]
[1745453947253,1.2511719,606.35,604.18,0.30368934]
[1745453947452,1.2511719,606.35,604.2,1.243]
[1745453947653,0.28765204,606.34,604.21,0.30368934]
[1745453948554,0.28765204,606.34,604.2,1.243]
[1745453948754,0.28765204,606.34,604.21,0.30368367]
[1745453949355,1.2511719,606.35,604.21,0.30368367]
[1745453950156,1.2511719,606.35,604.2,1.243]
[1745453950456,1.2511719,606.31,604.21,0.30368186]
[1745453951357,1.2511719,606.31,604.19,0.30368186]
[1745453952652,1.2511719,606.31,603.99,0.30368186]
[1745453952857,1.2511719,606.31,604.0,0.30368186]
[1745453953058,1.2511719,606.31,604.01,0.30368186]
[1745453953258,1.2511719,606.31,604.02,0.30368186]
[1745453953459,1.2511719,606.31,604.03,0.30368186]
[1745453953653,1.2511719,605.85,604.19,1.04865078]
[1745453953856,1.2511719,605.85,604.2,0.30368186]
[1745453954054,1.2511719,605.85,604.2,1.58368186]
[1745453954254,1.2511719,605.85,604.21,0.30368186]
[1745453955558,2.12872998,606.42,604.21,0.30368186]
[1745453955559,1.2511719,605.81,604.22,1.04865078]
[1745453955758,1.2511719,605.81,604.23,0.30368186]
[1745453956060,1.2511719,605.81,604.24,1.6]
[1745453956260,1.2511719,605.81,604.25,0.30368186]
[1745453956561,1.2511719,605.81,604.24,1.6]
[1745453956757,0.28770793,605.8,604.25,0.30369193]
[1745453956955,0.28770793,605.8,604.25,1.81169193]
[1745453957155,0.28770793,605.8,604.26,1.88569193]
[1745453957364,0.28770793,605.8,604.27,0.30369193]
[1745453958065,0.28770793,605.8,604.26,1.582]
[1745453958263,0.28770793,605.8,604.27,0.30369185]
[1745453958462,1.2511719,605.81,604.27,0.30369185]
[1745453958758,1.2511719,605.73,604.27,0.30369185]
[1745453961965,1.2511719,605.79,604.27,0.30369185]
[1745453962670,0.28770793,605.78,604.27,0.30369185]
[1745453964371,1.2511719,605.79,604.27,0.30369185]
[1745453964672,1.2511719,605.89,604.28,0.3036866]
[1745453964866,1.2511719,605.89,604.27,0.3036866]
[1745453965669,0.28769603,605.88,604.27,0.3036866]
[1745453967477,1.2511719,605.9,604.27,1.3116866]
[1745453967671,0.28769485,605.87,604.27,1.008]
[1745453967872,0.28769485,605.87,604.28,0.30368247]
[1745453968171,0.28769485,605.87,604.27,1.008]
[1745453970275,1.2511719,606.53,604.27,1.008]
[1745453970575,0.28758786,606.52,604.27,1.008]
[1745453973378,1.2511719,606.67,604.27,1.008]
[1745453974779,0.28757122,606.66,604.27,1.008]
[1745453976385,1.2511719,606.68,604.27,1.008]
[1745453976685,0.28757003,606.65,604.27,1.008]
[1745453977785,0.28757003,606.65,604.28,0.30362353]
[1745453978183,0.28757003,606.65,604.28,1.51962353]
[1745453978386,0.28757003,606.65,604.29,0.30362353]
[1745453979386,1.2511719,606.7,604.29,0.30362353]
[1745453980286,1.2511719,606.7,604.28,1.216]
[1745453980585,1.2511719,606.7,604.29,0.30362453]
[1745453980790,0.28756647,606.69,604.29,0.30362453]
[1745453981082,1.2511719,606.43,604.29,0.30362453]
[1745453981782,1.2511719,606.43,604.28,1.216]
[1745453981986,1.2511719,606.43,604.29,0.30362942]
[1745453983685,0.28759855,606.42,604.29,0.30362942]
[1745453983986,1.2511719,605.96,604.29,0.30362942]
[1745453985083,1.2511719,605.96,604.29,1.67262942]
[1745453985283,1.2511719,605.96,604.3,0.30362942]
[1745453986582,0.2876675,605.95,604.31,0.30364565]
[1745453986787,0.2876675,605.95,604.3,0.30364565]
[1745453986988,0.2876675,605.95,604.31,0.30364565]
[1745453987289,0.2876675,605.95,604.32,0.30364565]
[1745453987490,0.2876675,605.95,604.3,0.30364565]
[1745453987688,0.2876675,605.95,604.31,0.30364565]
[1745453987883,0.2876675,605.95,604.3,0.30364565]
[1745453988389,1.2511719,606.08,604.3,0.30364565]
[1745453988688,1.2511719,606.08,604.3,1.72564565]
[1745453988888,1.2511719,606.08,604.31,0.30364565]
[1745453989289,1.2511719,606.21,604.31,0.30364565]
[1745453989687,0.2876461,606.2,604.3,1.422]
[1745453989884,0.2876461,606.2,604.31,0.30365464]
[1745453991292,0.2876461,606.2,604.31,1.71065464]
[1745453991490,0.2876461,606.2,604.32,0.30365464]
[1745453994198,1.2511719,606.12,604.32,0.30365464]
[1745453995697,0.28766274,606.11,604.32,0.30365464]
[1745453995997,0.28766274,606.11,604.31,1.407]
[1745453996198,0.28766274,606.11,604.32,0.30368204]
[1745453996900,1.2511719,606.1,604.32,0.30368204]
[1745453998602,0.28766512,606.09,604.32,0.30368204]
[1745454000003,1.2511719,606.0,604.32,0.30368204]
[1745454001707,0.28767701,605.99,604.31,1.407]
[1745454001903,0.28767701,605.99,604.32,0.30368372]
[1745454003301,1.2511719,606.0,604.3,1.422]
[1745454003606,1.2511719,606.0,604.31,0.3036795]
[1745454004801,0.2876782,605.99,604.32,0.3036795]
[1745454005004,0.2876782,605.99,604.3,0.3036795]
[1745454005306,0.2876782,605.99,604.31,0.3036795]
[1745454005501,0.2876782,605.99,604.32,0.3036795]
[1745454005705,1.2511719,605.84,604.3,0.3036795]
[1745454006305,1.2511719,605.84,604.3,1.8466795]
[1745454006606,1.2511719,605.84,604.31,0.3036795]
[1745454007806,2.12872998,606.36,604.31,0.3036795]
[1745454007807,1.2511719,605.81,604.31,0.3036795]
[1745454008001,1.2511719,605.81,604.32,0.30367787]
[1745454008404,1.2511719,605.81,604.33,0.30367787]
[1745454008607,1.2511719,605.81,604.33,1.101]
[1745454008807,1.2511719,605.81,604.34,0.30367787]
[1745454009606,0.28769722,605.8,604.34,0.30367787]
[1745454012409,1.2511719,605.83,604.34,0.30367787]
[1745454012610,1.2511719,605.83,604.33,1.101]
[1745454012808,1.2511719,605.83,604.34,0.30368334]
[1745454013211,1.2511719,605.93,604.34,0.30368334]
[1745454013714,0.28768295,605.92,604.34,0.30368334]
[1745454014210,0.28768295,605.92,604.33,1.101]
[1745454014404,0.28768295,605.92,604.34,0.30368334]
[1745454015312,1.2511719,605.91,604.34,0.30368334]
[1745454015713,1.53885485,605.91,604.34,0.30368334]
[1745454015906,1.53885485,605.91,604.35,0.30368642]
[1745454016111,1.53885485,605.91,604.36,0.30368642]
[1745454016412,1.53885485,605.91,604.33,1.101]
[1745454016413,1.53885485,605.91,604.37,0.30368642]
[1745454016608,1.53885485,605.91,604.34,0.30368642]
[1745454016809,1.53885485,605.91,604.35,0.30368642]
[1745454017113,1.53885485,605.91,604.36,0.30368642]
[1745454017309,1.53885485,605.91,604.34,0.30368642]
[1745454017508,1.53885485,605.91,604.35,0.30368642]
[1745454017709,1.53885485,605.91,604.33,1.101]
[1745454018009,1.53885485,605.91,604.34,0.30362921]
[1745454018215,1.53885485,605.91,604.33,1.101]
[1745454020922,0.28768295,605.91,604.33,1.101]
[1745454024222,0.28768295,605.91,604.34,0.30361824]
[1745454024423,1.2511719,606.57,604.34,0.30361824]
[1745454024722,1.2511719,606.57,604.33,1.101]
[1745454024723,0.28757122,605.9,604.33,1.101]
[1745454024923,1.2511719,606.57,604.33,1.101]
[1745454025233,1.2511719,606.52,604.34,1.085]
[1745454025420,1.2511719,606.52,604.35,0.30361645]
[1745454025719,0.28757597,606.51,604.35,0.30361645]
[1745454027119,0.28757597,606.51,604.34,1.085]
[1745454027323,0.28757597,606.51,604.35,0.30361468]
[1745454027524,1.2511719,606.52,604.35,0.30361468]
[1745454027719,0.28757597,606.5,604.35,0.30361468]
[1745454028318,1.2511719,606.41,604.35,0.30361468]
[1745454028819,1.2511719,606.41,604.36,0.30361367]
[1745454029124,1.2511719,606.41,604.37,0.30361367]
[1745454029325,1.2511719,606.41,604.35,0.30361367]
[1745454029524,1.2511719,606.41,604.36,0.30361367]
[1745454029724,1.2511719,606.41,604.35,0.30361367]
[1745454030821,1.2511719,606.24,604.35,0.30361367]
[1745454031928,1.2511719,606.24,604.36,0.30366005]
[1745454032225,1.2511719,606.24,604.37,0.30366005]
[1745454032427,1.2511719,606.24,604.35,0.30366005]
[1745454032628,1.2511719,606.24,604.36,0.30366005]
[1745454032824,1.2511719,606.24,604.37,1.374]
[1745454033027,1.2511719,606.24,604.38,0.30366005]
[1745454033227,1.2511719,605.99,604.38,0.30366005]
[1745454033729,0.28766393,605.98,604.38,0.30366005]
[1745454035927,0.28766393,605.98,604.37,1.374]
[1745454036430,1.2511719,606.05,604.37,1.374]
[1745454037233,1.2511719,606.05,604.38,0.30362939]
[1745454037825,1.2511719,606.05,604.37,1.374]
[1745454037826,0.28763064,606.04,604.37,1.374]
[1745454038131,0.28763064,606.04,604.38,0.30362978]
[1745454039431,1.2511719,606.26,604.38,0.30362978]
[1745454040632,0.28760568,606.25,604.38,0.30362978]
[1745454040827,1.53877758,606.25,604.38,0.30362978]
[1745454041430,1.53877758,606.25,604.39,1.267]
[1745454042435,1.2511719,606.25,604.39,1.267]
[1745454042731,0.28760449,606.24,604.39,1.267]
[1745454042930,0.28760449,606.24,604.4,1.631]
[1745454044337,0.28760449,606.24,604.41,0.30363016]
[1745454045440,1.2511719,606.29,604.41,0.30363016]
[1745454045741,1.2511719,606.29,604.4,1.631]
[1745454045935,1.2511719,606.29,604.41,0.30363043]
[1745454046836,0.28759855,606.28,604.41,0.30363043]
[1745454047643,1.2511719,606.21,604.41,0.30363043]
[1745454049744,0.28760806,606.2,604.41,0.30363043]
[1745454050340,1.53877996,606.2,604.41,0.30363043]
[1745454051445,1.2511719,606.2,604.41,0.30363043]
[1745454051845,0.28760925,606.19,604.41,0.30363043]
[1745454052246,0.28760925,606.19,604.42,0.30362768]
[1745454052448,0.28760925,606.19,604.41,0.30362768]
[1745454052746,0.28760925,606.19,604.42,0.30362768]
[1745454052949,1.2511719,606.1,604.42,0.30362768]
[1745454055254,1.2511719,606.05,604.42,0.30362768]
[1745454055449,1.2511719,606.05,604.43,0.30361774]
[1745454055650,1.2511719,606.05,604.42,1.35661774]
[1745454055847,0.28761876,606.04,604.43,0.30361774]
[1745454056948,0.28761876,606.04,604.42,1.053]
[1745454057152,0.28761876,606.04,604.43,0.30358936]
[1745454057552,2.12872998,606.18,604.43,0.30358936]
[1745454057553,1.2511719,606.06,604.43,0.30358936]
[1745454057749,0.28761757,606.03,604.43,0.30358936]
[1745454060050,0.28761757,606.03,604.42,1.053]
[1745454060254,0.28761757,606.03,604.43,0.30359408]
[1745454060454,1.2511719,606.17,604.43,1.87659408]
[1745454060757,0.28760331,606.02,604.44,0.30359408]
[1745454061059,1.2511719,606.17,604.44,0.30359408]
[1745454061754,0.28760212,606.16,604.44,0.30359408]
[1745454062356,0.28760212,606.16,604.45,1.644]
[1745454062550,0.28760212,606.16,604.46,0.30359408]
[1745454062752,0.28760212,606.16,604.45,1.644]
[1745454062753,0.28760212,606.16,604.47,0.30360541]
[1745454062950,0.28760212,606.16,604.46,0.30360541]
[1745454063156,0.28760212,606.16,604.45,1.644]
[1745454063157,0.28760212,606.16,604.47,0.30360541]
[1745454063354,0.28760212,606.16,604.46,0.30360541]
[1745454063553,1.2511719,606.24,604.47,0.30360541]
[1745454063758,0.28759142,606.15,604.48,0.30360541]
[1745454063954,0.28759142,606.15,604.46,0.30360541]
[1745454064157,1.2511719,606.24,604.45,1.644]
[1745454064451,1.2511719,606.24,604.46,0.30360524]
[1745454064656,1.2511719,606.24,604.45,1.644]
[1745454064859,0.28759142,606.23,604.45,1.644]
[1745454065257,0.28759142,606.23,604.46,0.30360518]
[1745454065861,0.28759142,606.23,604.45,1.644]
[1745454066061,0.28759142,606.23,604.46,0.3035999]
[1745454070563,0.28759142,606.23,604.45,1.644]
[1745454070755,0.28759142,606.23,604.46,0.30355095]
[1745454072463,1.2511719,606.29,604.45,1.644]
[1745454072763,1.2511719,606.29,604.46,0.30354194]
[1745454072960,1.2511719,606.4,604.46,0.30354194]
[1745454073664,0.28754627,606.39,604.46,0.30354194]
[1745454075262,0.28754627,606.39,604.45,1.644]
[1745454075463,1.2511719,606.4,604.46,1.76952221]
[1745454075662,1.2511719,606.4,604.47,0.30352221]
[1745454076269,1.2511719,606.41,604.47,0.30352221]
[1745454076867,0.28752727,606.4,604.47,0.30352221]
[1745454078368,1.2511719,606.41,604.47,0.30352221]
[1745454078669,0.28751776,606.39,604.47,0.30352221]
[1745454079271,0.28751776,606.39,604.48,1.413]
[1745454079464,0.28751776,606.39,604.49,0.30352221]
[1745454081470,0.28751776,606.39,604.48,1.413]
[1745454081672,0.28751776,606.39,604.49,0.30348534]
[1745454083070,0.28751776,606.39,604.48,1.413]
[1745454083271,0.28751776,606.39,604.5,1.49]
[1745454083477,0.28751776,606.39,604.51,0.30346979]
[1745454084467,1.2511719,606.83,604.51,0.30346979]
[1745454084671,0.28744414,606.38,604.52,0.30345098]
[1745454084870,0.28744414,606.38,604.53,0.30345098]
[1745454085069,1.2511719,606.83,604.51,0.30345098]
[1745454085268,1.2511719,606.83,604.52,0.30345098]
[1745454085471,1.2511719,606.83,604.53,0.30345098]
[1745454085675,0.28744414,606.82,604.51,0.30345098]
[1745454085968,0.28744414,606.82,604.52,0.30345098]
[1745454086172,0.28744414,606.82,604.51,0.30345098]
[1745454087472,1.2511719,606.83,604.51,0.30345098]
[1745454087773,1.2511719,606.83,604.5,1.49]
[1745454087973,1.2511719,606.83,604.51,0.3034507]
[1745454088669,0.28744414,606.82,604.51,0.3034507]
[1745454089370,0.28744414,606.82,604.52,0.30344438]
[1745454089569,0.28744414,606.82,604.51,0.30344438]
[1745454089775,0.28744414,606.82,604.52,0.30344438]
[1745454089971,0.28744414,606.82,604.51,0.30344438]
[1745454090171,0.28744414,606.82,604.52,0.30344438]
[1745454090369,1.2511719,606.83,604.53,0.30344438]
[1745454090568,1.2511719,606.83,604.51,0.30344438]
[1745454090770,1.2511719,606.83,604.52,0.30344438]
[1745454090973,1.2511719,606.83,604.51,0.30344438]
[1745454091571,0.28743465,606.82,604.51,0.30344438]
[1745454092475,0.28743465,606.82,604.5,1.77743465]
[1745454092677,0.28743465,606.82,604.52,0.30342854]
[1745454092876,0.28743465,606.82,604.53,0.30342854]
[1745454093076,0.28743465,606.82,604.51,0.30342854]
[1745454093277,0.28743465,606.82,604.52,0.30342854]
[1745454093471,1.2511719,606.83,604.53,0.30342854]
[1745454093674,1.2511719,606.83,604.51,0.30342854]
[1745454093872,0.28743465,606.81,604.52,0.30342854]
[1745454094072,0.28743465,606.81,604.5,1.49]
[1745454094277,0.28743465,606.81,604.52,1.336]
[1745454094579,0.28743465,606.81,604.53,0.30342598]
[1745454096380,1.2511719,606.83,604.53,0.30342598]
[1745454096680,0.28743227,606.8,604.53,0.30342598]
[1745454099485,1.2511719,606.83,604.53,0.30342598]
[1745454100784,0.28743227,606.82,604.53,0.30342598]
[1745454101684,0.28743227,606.82,604.54,0.30342598]
[1745454102282,0.28743227,606.82,604.55,0.30342598]
[1745454102479,0.28743227,606.82,604.56,0.30342598]
[1745454102683,0.28743227,606.82,604.57,0.30342598]
[1745454102884,0.28743227,606.82,604.58,0.30342598]
[1745454103084,0.28743227,606.82,604.59,0.30342598]
[1745454103282,0.28743227,606.82,604.6,0.30342598]
[1745454103483,1.2511719,606.44,604.56,1.04865078]
[1745454103683,1.2511719,606.44,604.57,0.30342598]
[1745454105687,0.28747382,606.43,604.58,1.507]
[1745454105985,0.28747382,606.43,604.59,0.30342598]
[1745454106287,0.28747382,606.43,604.59,1.92242598]
[1745454106584,0.28747382,606.43,604.6,1.32843734]
[1745454106781,0.28747382,606.43,604.61,0.30343734]
[1745454108089,0.28747382,606.43,604.6,2.613]
[1745454110389,0.28747382,606.43,604.61,0.30344388]
[1745454111189,0.28747382,606.43,604.6,2.613]
[1745454111385,0.28747382,606.43,604.61,0.30344337]
[1745454111690,1.2511719,606.71,604.61,0.30344337]
[1745454111888,0.28740141,606.42,604.61,0.30344337]
[1745454112091,1.2511719,606.71,604.61,0.30344337]
[1745454112891,0.28744889,606.7,604.61,0.30344337]
[1745454114493,1.2511719,606.71,604.61,0.30344337]
[1745454114794,1.2511719,606.62,604.61,0.30344337]
[1745454115688,0.28745958,606.61,604.61,0.30344337]
[1745454115895,0.28745958,606.61,604.6,2.613]
[1745454116189,0.28745958,606.61,604.61,0.30345166]
[1745454117296,1.2511719,606.59,604.61,0.30345166]
[1745454118694,0.28746314,606.58,604.61,0.30345166]
[1745454119993,1.2511719,606.26,604.69,1.04865078]
[1745454120198,1.2511719,606.26,604.7,0.30345166]
[1745454120597,1.2511719,606.26,604.69,1.04865078]
[1745454120798,1.2511719,606.26,604.7,0.30345234]
[1745454123701,0.28747976,606.25,604.7,0.30345234]
[1745454124102,0.28747976,606.25,604.71,1.04865078]
[1745454124103,1.53865166,606.25,604.71,1.04865078]
[1745454124305,1.53865166,606.25,604.72,0.30345234]
[1745454126205,0.28747976,606.25,604.72,0.30345234]
[1745454126400,0.28747976,606.25,604.68,1.04865078]
[1745454126601,1.2511719,606.36,604.69,0.30343693]
[1745454126800,0.28748689,606.25,604.69,0.30343693]
[1745454127004,1.2511719,606.36,604.69,0.30343693]
[1745454127806,0.28746907,606.35,604.69,0.30343693]
[1745454129404,1.2511719,606.36,604.68,1.04865078]
[1745454129702,0.28746907,606.35,604.68,1.04865078]
[1745454131911,0.28746907,606.35,604.67,0.28746907]
[1745454132103,0.28746907,606.35,604.68,1.033]
[1745454132407,1.2511719,606.9,604.68,1.033]
[1745454132609,0.28740497,606.34,604.68,1.033]
[1745454132907,1.2511719,606.9,604.68,1.033]
[1745454133909,0.28741921,606.89,604.68,1.033]
[1745454135411,1.2511719,606.91,604.68,1.033]
[1745454135713,0.28741803,606.88,604.68,1.033]
[1745454135911,0.28741803,606.88,604.69,0.30344628]
[1745454137610,0.28741803,606.88,604.7,1.189]
[1745454137811,0.28741803,606.88,604.71,0.3034396]
[1745454138513,1.2511719,606.89,604.71,0.3034396]
[1745454139712,0.28741803,606.88,604.71,0.3034396]